Cogmind - Beta 9.6 @@@ ROGUE MODE // 2020.04.24 @ 12:36:38 Player: TravelDemon Result: Destroyed by S-10 Pest with Light Assault Rifle Performance ------------- Evolutions (0) 0 Regions Visited (1) 200 Robots Destroyed (4) 20 Value Destroyed (46) 46 Prototype IDs (0) 0 Alien Tech Used (0) 0 Bonus (0) 0 TOTAL SCORE: 266 Bonus ------- None Cogmind --------- Core Integrity 0/250 Matter 200/300 Energy 99/100 System Corruption 0% Temperature Cool (0) Movement Core (100) Ox1 Location -10/Materials Parts ------- > --- POWER (1) -------- (None) > --- PROPULSION (2) --- (None) > --- UTILITY (2) ------ Small Storage Unit > --- WEAPON (2) ------- (None) > --- INVENTORY (6) ---- Seismic Analyzer Peak State ------------ > --- POWER ------------ Light Ion Engine > --- PROPULSION ------- Aluminum Leg Aluminum Leg > --- UTILITY ---------- Small Storage Unit > --- WEAPON ----------- EM Pulse Gun Light Assault Rifle > --- INVENTORY -------- Small Laser [Rating: 6] Favorites ----------- Power Light Ion Engine Engine Light Ion Engine Propulsion Aluminum Leg Leg Aluminum Leg Utility Small Storage Unit Storage Small Storage Unit Weapon Light Assault Rifle Energy Gun EM Pulse Gun Ballistic Gun Light Assault Rifle Build | -11 -10 ------- Run | Scr Mat Slots Evolved . | . . Power . | . . Propulsion . | . . Utility . | . . Weapon . | . . Parts Attached 8 | 6 2 Power 1 | 1 . Engine 1 | 1 . Core . | . . Reactor . | . . Propulsion 2 | 2 . Treads . | . . Leg 2 | 2 . Wheel . | . . Hover . | . . Flight . | . . Utility 1 | 1 . Device . | . . Storage 1 | 1 . Processor . | . . Hackware . | . . Protection . | . . Artifact . | . . Weapon 4 | 2 2 Energy Gun 2 | 1 1 Energy Cannon . | . . Ballistic Gun 2 | 1 1 Ballistic Cannon . | . . Launcher . | . . Special Weapon . | . . Impact Weapon . | . . Slashing Weapon . | . . Piercing Weapon . | . . Special Melee Weapon . | . . Unidentified Prototypes . | . . Parts Lost 7 | . 7 Power 1 | . 1 Propulsion 2 | . 2 Utility . | . . Weapon 4 | . 4 Highest Loss Streak 7 | . 7 Average Slot Usage (%) 70 | . 70 Engine 10 | . 10 Leg 21 | . 21 Storage 14 | . 14 Energy Gun 10 | . 10 Ballistic Gun 13 | . 13 Naked Turns . | . . Heaviest Build 10 | 10 10 Greatest Support 20 | 20 20 Greatest Overweight (x) 3 | 3 1 Average Overweight (x) . | 1 . Largest Inventory Capacity 6 | 6 6 Average Capacity 5 | 5 6 Most Carried 2 | 1 2 Average Carried 1 | . 1 Final Capacity 6 | 6 6 Final Carried 1 | 1 1 Class Distribution -------------------- 100% | Mutant Dominant Class ---------------- Mutant | -10/Materials Resources | -11 -10 ----------- Run | Scr Mat Matter Collected 163 | 148 15 Remotely . | . . Salvage Created 71 | . 71 Parts 7 | . 7 Haulers Intercepted . | . . Recyclers Shooed . | . . Parts Field Recycled . | . . Retrieved Matter . | . . Parts Self-Destructed . | . . Prevented . | . . Kills | -11 -10 ------- Run | Scr Mat Combat Hostiles Destroyed 3 | . 3 Guns 3 | . 3 Classes Destroyed 2 | . 2 Operator 1 | . 1 Swarmer 3 | . 3 Best Kill Streak 2 | . 2 Combat Bots Only 2 | . 2 Max Kills in Single Turn 1 | . 1 Gunslinging . | . . Exploded . | . . Melee . | . . Uniques/NPCs Destroyed . | . . Combat | -11 -10 -------- Run | Scr Mat Damage Taken 868 | . 868 Core 254 | . 254 Absorbed by Shields . | . . Core Remaining (%) 100 | 100 . Volleys Fired 18 | . 18 Largest 2 | . 2 Hottest 60 | . 60 Shots Fired 25 | . 25 Gun 25 | . 25 Cannon . | . . Launcher . | . . Special . | . . Kinetic 18 | . 18 Thermal 2 | . 2 Explosive . | . . Electromagnetic 5 | . 5 Robot Hit Streak 4 | . 4 Robot Miss Streak 3 | . 3 Penetration Max . | . . Secondary Targets . | . . Shots Hit Robots 15 | . 15 Core Hits 7 | . 7 Critical Hits . | . . Critical Kills . | . . Critical Parts Destroyed . | . . Melee Attacks . | . . Impact . | . . Slashing . | . . Piercing . | . . Sneak Attacks . | . . Combat Hostiles . | . . Follow-up Attacks . | . . Damage Inflicted 178 | . 178 Guns 178 | . 178 Cannons . | . . Explosions . | . . Melee . | . . Ramming . | . . Kinetic 103 | . 103 Thermal 10 | . 10 Explosive . | . . Electromagnetic 65 | . 65 Impact . | . . Slashing . | . . Piercing . | . . Highest Corruption . | . . Average Corruption . | . . Corruption Purged . | . . Overload Shots . | . . Overflow Damage . | . . Projectiles . | . . Explosions . | . . Melee . | . . Knockbacks . | . . Impact . | . . Kinetic . | . . Secondary . | . . Self-Inflicted Damage . | . . Shots . | . . Rammed . | . . Targets Rammed . | . . Kicked . | . . Crushed . | . . Highest Temperature 40 | . 40 Average Temperature 17 | . 17 Received Heat Transfer . | . . Siege Activations . | . . Robots Corrupted . | . . Combat Hostiles . | . . Parts Fried 1 | . 1 Impact Corruptions . | . . Robots Melted . | . . Combat Hostiles . | . . Parts Melted . | . . Heat Transferred 25 | . 25 Parts Sabotaged . | . . Parts Stolen . | . . Parts Stripped . | . . Power Chain Reactions . | . . Missiles Intercepted . | . . Alert | -11 -10 ------- Run | Scr Mat Peak Influence 30 | . 30 Average Influence 3 | . 5 Maximum Alert Level . | . . Low Security (%) 100 | 100 100 Level 1 . | . . Level 2 . | . . Level 3 . | . . Level 4 . | . . Level 5 . | . . High Security . | . . Max Security . | . . Squads Dispatched . | . . Investigation . | . . Extermination . | . . Reinforcement . | . . Assault . | . . Garrison . | . . Intercept . | . . Construction Impeded . | . . Haulers Reinforced . | . . Stealth | -11 -10 --------- Run | Scr Mat Distress Signals . | . . Communications Jammed . | . . Distress Signals . | . . Times Spotted 9 | . 9 Peak Tracking Total 6 | . 6 Tactical Retreats 1 | . 1 Traps | -11 -10 ------- Run | Scr Mat Traps Triggered 1 | . 1 Indirectly . | . . Trap Hack Attempts . | . . Triggered . | . . Disarmed . | . . Reprogrammed . | . . Reused . | . . Traps Extracted . | . . Installed . | . . Triggered . | . . Machines | -11 -10 ---------- Run | Scr Mat Machines Disabled . | . . Max in Single Turn . | . . Machines Sabotaged . | . . Garrisons Compromised . | . . Overloaded Fab Kills . | . . Fab Network Shutdowns . | . . Hacking | -11 -10 --------- Run | Scr Mat Machines Accessed . | . . Terminals . | . . Fabricators . | . . Repair Stations . | . . Recycling Units . | . . Scanalyzers . | . . Garrison Access . | . . Total Hacks . | . . Successful . | . . Failed . | . . Catastrophic . | . . Database Lockouts . | . . Manual . | . . Terminals . | . . Fabricators . | . . Repair Stations . | . . Recycling Units . | . . Scanalyzers . | . . Garrison Access . | . . Terminal Hacks . | . . Fabricator Hacks . | . . Repair Station Hacks . | . . Recycling Unit Hacks . | . . Scanalyzer . | . . Garrison Access Hacks . | . . Unauthorized Hacks . | . . Terminals . | . . Fabricators . | . . Repair Stations . | . . Recycling Units . | . . Scanalyzers . | . . Garrison Access . | . . Data Cores Recovered . | . . Used . | . . Hacking Detections . | . . Full Trace Events . | . . Feedback Events . | . . Feedback Blocked . | . . Robot Schematics Acquired . | . . Robots Built . | . . Matter . | . . Time . | . . Total Robot Build Rating . | . . Part Schematics Acquired . | . . Parts Built . | . . Matter . | . . Time . | . . Total Part Build Rating . | . . Parts Repaired . | . . Time . | . . Parts Recycled . | . . Recycled Matter . | . . Retrieved Matter . | . . Retrieved Components . | . . Parts Scanalyzed . | . . Part Schematics Acquired . | . . Parts Damaged . | . . Bothacking | -11 -10 ------------ Run | Scr Mat Used RIF Installer . | . . Robots Hacked . | . . Non-combat . | . . Combat . | . . Robot Hacks Applied . | . . Relay Couplers Released . | . . Robots Rewired . | . . Allies Hacked . | . . Hacks Repelled . | . . Allies | -11 -10 -------- Run | Scr Mat Total Allies . | . . Largest Group . | . . Highest-Rated Group . | . . Highest-Rated Ally . | . . Total Orders . | . . Ally Attacks . | . . Total Damage . | . . Kills . | . . Allies Corrupted . | . . Allies Melted . | . . Intel | -11 -10 ------- Run | Scr Mat Robot Analysis Total . | . . Derelict Logs Recovered . | . . Drone Launches . | . . Drone Recoveries . | . . Exploration | -11 -10 ------------- Run | Scr Mat Turns Passed 246 | 61 185 Spaces Moved 149 | 38 111 Core 51 | 26 25 Treads . | . . Legs 98 | 12 86 Wheels . | . . Hover . | . . Flight . | . . Fastest Speed 50 | 50 100 Average Speed 120 | 135 115 Slowest Speed 200 | 200 120 Overloaded Moves . | . . Propulsion Burnouts . | . . Robots Hopped . | . . Cave-ins Triggered . | . . Exploration Rate (%) 14 | 4 25 Regions Visited 1 Branch Regions . Pre-discovered Areas . | . . Known Exits Taken . | . . Unknown Exits Taken 1 | 1 . Scrap Searched . | . . Spaces Dug . | . . Terrain Destroyed . | . . Melee . | . . Projectile . | . . AOE . | . . Actions | -11 -10 --------- Run | Scr Mat Total 190 | 44 146 Wait 14 | . 14 Move 148 | 37 111 Hop . | . . Pick Up 2 | 1 1 Fast Attach 7 | 6 1 Attach 1 | . 1 Detach . | . . Swap . | . . Drop . | . . Fire 18 | . 18 Melee . | . . Ram . | . . Kick . | . . Crush . | . . Escape Stasis . | . . Rewire . | . . Trap . | . . Miscellaneous . | . . Route ------- -11/Scrapyard -10/Materials History --------- Turn | Location | Event 3 | -11/Scrapyard | Discovered new exit (range 16) 62 | -11/Scrapyard | Entered Materials 217 | -10/Materials | Core integrity fell below 50% 238 | -10/Materials | Core integrity fell below 20% 247 | -10/Materials | Destroyed by S-10 Pest with Light Assault Rifle Last Messages --------------- 00161_ U-05 Engineer lays Concrete. 00187_ Destroyed Flight Unit. 00192_ EM Pulse Gun destroyed. 00194_ S-10 Pest destroyed. 00196_ Acquired 15 matter. 00197_ Aluminum Leg destroyed. 00198_ Acquired Lgt. Assault Rifle. 00199_ Lgt. Ion Engine destroyed. 00200_ S-10 Pest destroyed. 00202_ Lgt. Assault Rifle destroyed. 00213_ Aluminum Leg destroyed. 00218_ K-01 Serf collects debris. 00220_ Lgt. Assault Rifle destroyed. 00221_ S-10 Pest destroyed. 00221_ K-01 Serf collects debris. 00222_ Sml. Laser destroyed. 00224_ K-01 Serf collects debris. 00240_ R-06 Scavenger collects Datajack. 00243_ K-01 Serf collects debris. 00247_ U-05 Engineer lays Concrete. Map ----- +----------------------------------------------------+ | ?????????# #???????######?????????????? | | ?????????# #???????# #?????????????? | | ?????????# #???????# #?????????????? | | ########?# #???????# #?????????????? | | *#?# #####?### #?????????????? | | #####+##+## #?# + #?????????????? | | + #?# # #?????????????? | | ########### #?# # * #?????????????? | | "" """ #?????????## ##?# #==%[#?????????????? | | "" """ #??????????# #??# # %= #?????????????? | | "" """ #????????### #### ###/##?????????????? | | #????????# r ###????????????? | | ########????????# ""#????????????? | | ????????????????+ """ s T"#????????????? | | ????????????????# """ ""#????????????? | | ????????????????# """ $ ###????????????? | | ????????????????## "" % #??????????????? | | ?????????????????# #??????????????? | | ???????????????### #??????????????? | | ???????????????#"" """ #??????????????? | | ???????????????#"Y """ #??????????????? | | ???????????????#"" """ #??????????????? | | ???????????????### """ #??????????????? | | ?????????????????# #??????????????? | | ?????????????????# ^ #??????????????? | | ?????????????????# """ @ #??????????????? | | ?????????????????# """ #??????????????? | | ?????????????????# """ #??????????????? | | ?????????????????# """ #??????????????? | | ?????????????????# #??????????????? | | ?????????????????#* #??????????????? | | ?????????????????# ??????????????? | | ?????????????????# u ?????????????? | | ?????????????????+ u u u ????????????? | | ?????????????????# u ##+##### ????????????? | | ?????????????????# ? ????? ???????????? | | ????????????????? ?? ????? ??????????? | | ???????????????? ?? ?????? ??????????? | | ?????????????????? ??? ??????? ???????????? | | ????????????????????????????????????????????? | | ????????????????????????????????????????????? | | ????????????????????????????????????????????? | | ????????????????????????????????????????????? | | ????????????????????????????????????????????? | | ????????????????????????????????????????????? | | ????????????????????????????????????????????? | | ????????????????????????????????????????????? | | ????????????????????????????????????????????? | | ????????????????????????????????????????????? | | ????????????????????????????????????????????? | +----------------------------------------------------+ Best States ------------- Heat Dissipation 25 Energy Generation 10 Energy Capacity 125 Matter Stores 201 Matter Capacity 300 Sight Range 16 Terrain Scan Density 10 Evasion (%) 40 Item Schematics ----------------- None Robot Schematics ------------------ None Fabricated ------------ Nothing Alien Tech Used ----------------- None Achievements -------------- None Challenges ------------ None Game ------ Seed SupersonicDiametricRigger Manual? 0 Play Time 00:03:53 Cumulative 23.6 hours Start 2020.04.24 @ 12:34:29 End 2020.04.24 @ 12:36:38 Sessions 1 Manual Loads 0 Difficulty Rogue Special Mode None Game No. 44 Rogue 42 Adventurer 0 Explorer 2 Win Type - Total 0 Types 0/0/0/0/0/0/0 Lore% 23 Gallery% 31 Achievement% 24 Wizard Run 0 Options --------- ASCII 0 Keyboard 1 Movement Numpad Keybinds 0 Fullscreen 2 Font 18/SmallcapsGlow Map View 76x50 Tactical HUD 1 Map Filters NONE Filters NONE Steam 1 RUN: ff1b744b-e652-4f00-b7a9-3c3e0e0bf95f